fUSD/lending_fUSD_20260702
["ID","MTS","AMOUNT","RATE_DAILY","PERIOD"]
[426897781,1782994236000,-1133.21537626,0.00030042,2]
[426897788,1782994236000,-429.2447611,0.00030137,2]
[426897757,1782994236000,-1500.0,0.00029378,2]
[426897776,1782994236000,-500.0,0.00029999,14]
[426897758,1782994236000,-1586.70449826,0.00029378,2]
[426897733,1782994236000,-92631.14,0.00029106,2]
[426897759,1782994236000,-170.964018,0.00029385,10]
[426897730,1782994236000,-187.0,0.00029,2]
[426897731,1782994236000,-272.0,0.00029,2]
[426897732,1782994236000,-729.96,0.00029105,7]
[426897791,1782994236000,-1774.0,0.00030162,2]
[426897735,1782994236000,-500.0,0.0002913,2]
[426897734,1782994236000,-500.0,0.0002913,2]
[426897736,1782994236000,-483.05484006,0.0002913,2]
[426897737,1782994236000,-150.0,0.0002913,2]
[426897738,1782994236000,-160.57,0.00029138,7]
[426897741,1782994236000,-165.78,0.0002914,7]
[426897739,1782994236000,-160.5,0.00029139,7]
[426897747,1782994236000,-175.4479127,0.00029378,2]
[426897744,1782994236000,-161.62,0.00029237,2]
[426897743,1782994236000,-1806.87214507,0.00029205,2]
[426897740,1782994236000,-165.72,0.00029139,7]
[426897746,1782994236000,-429.24,0.00029315,2]
[426897748,1782994236000,-518.5,0.00029378,2]
[426897742,1782994236000,-165.79,0.0002914,7]
[426897745,1782994236000,-161.64,0.00029238,2]
[426897750,1782994236000,-2368.1892939,0.00029378,2]
[426897760,1782994236000,-155.71,0.00029399,14]
[426897749,1782994236000,-1500.0,0.00029378,2]
[426897752,1782994236000,-1500.0,0.00029378,2]
[426897761,1782994236000,-190.34,0.000295,7]
[426897751,1782994236000,-1500.0,0.00029378,2]
[426897755,1782994236000,-1500.0,0.00029378,2]
[426897753,1782994236000,-1500.0,0.00029378,2]
[426897756,1782994236000,-1500.0,0.00029378,2]
[426897790,1782994236000,-282.99,0.00030137,14]
[426897773,1782994236000,-1369.4146847,0.00029803,2]
[426897795,1782994236000,-216.69616408,0.000302,30]
[426897820,1782994236000,-508.0,0.00030783,6]
[426897819,1782994236000,-3451.34,0.00030772,14]
[426897821,1782994236000,-266.5965766,0.00030785,2]
[426897837,1782994236000,-350.0,0.00031045,2]
[426897826,1782994236000,-999.73305166,0.00030877,30]
[426897827,1782994236000,-530.41063718,0.000309,2]
[426897838,1782994236000,-295.58,0.000311,7]
[426897828,1782994236000,-2000.0,0.00030944,60]
[426897833,1782994236000,-1000.0,0.00031,20]
[426897835,1782994236000,-999.73305166,0.00031014,30]
[426897829,1782994236000,-2000.0,0.00030996,16]
[426897834,1782994236000,-150.0,0.00031011,2]
[426897831,1782994236000,-1000.0,0.00031,7]
[426897836,1782994236000,-2368.1892939,0.00031022,2]
[426897832,1782994236000,-3030.0,0.00031,25]
[426897839,1782994236000,-207.63259636,0.00031106,2]
[426897842,1782994236000,-9000.0,0.00031157,5]
[426897841,1782994236000,-502.61,0.00031144,10]
[426897843,1782994236000,-150.7194063,0.00031208,2]
[426897848,1782994236000,-2368.1892939,0.00031296,2]
[426897847,1782994236000,-6860.5649452,0.00031291,2]
[426897850,1782994236000,-150.0,0.00031298,2]
[426897846,1782994236000,-350.0,0.00031288,2]
[426897849,1782994236000,-150.0,0.00031298,2]
[426897844,1782994236000,-270.48710506,0.0003123,2]
[426897845,1782994236000,-999.73305166,0.00031233,30]
[426897840,1782994236000,-999.73305166,0.00031123,30]
[426897823,1782994236000,-243.41570338,0.00030812,2]
[426897824,1782994236000,-971.33729281,0.00030813,2]
[426897830,1782994236000,-2000.0,0.00030997,28]
[426897825,1782994236000,-350.0,0.00030845,2]
[426897796,1782994236000,-1589.0,0.00030256,2]
[426897789,1782994236000,-3451.34,0.00030137,14]
[426897793,1782994236000,-190.34,0.000302,7]
[426897799,1782994236000,-150.7194063,0.00030361,2]
[426897792,1782994236000,-2368.1892939,0.000302,2]
[426897798,1782994236000,-151.68841508,0.00030344,2]
[426897822,1782994236000,-209.65924773,0.00030812,2]
[426897800,1782994236000,-2000.0,0.00030386,20]
[426897801,1782994236000,-175.51104744,0.00030411,60]
[426897812,1782994236000,-10000.0,0.00030646,2]
[426897813,1782994236000,-239.66522638,0.00030708,2]
[426897802,1782994236000,-4612.234,0.00030434,26]
[426897803,1782994236000,-167.984,0.00030434,26]
[426897811,1782994236000,-2000.0,0.00030646,2]
[426897794,1782994236000,-295.58,0.000302,7]
[426897809,1782994236000,-999.73305166,0.0003063,30]
[426897804,1782994236000,-1806.87214507,0.00030437,2]
[426897818,1782994236000,-999.73305166,0.00030767,30]
[426897817,1782994236000,-200.0,0.00030752,2]
[426897814,1782994236000,-317.29,0.0003074,2]
[426897816,1782994236000,-302.43252381,0.0003075,14]
[426897815,1782994236000,-2368.1892939,0.00030748,2]
[426897797,1782994236000,-195.415439,0.00030259,10]
[426897808,1782994236000,-999.73305166,0.00030521,30]
[426897805,1782994236000,-2000.0,0.00030451,26]
[426897851,1782994236000,-150.0,0.00031298,2]
[426897806,1782994236000,-2368.1892939,0.00030474,2]
[426897807,1782994236000,-298.5,0.00030516,30]
[426897810,1782994236000,-1000.0,0.00030645,2]
[426897872,1782994237000,-437.11407432,0.00025554,2]
[426897870,1782994237000,-185.43,0.00024658,2]
[426897869,1782994237000,-154.0,0.00024,2]
[426897871,1782994237000,-154.0,0.00025,2]
[426897862,1782994237000,-858.73471216,0.000313,30]
[426897863,1782994237000,-687.69603829,0.000313,30]
[426897860,1782994237000,-906.42945608,0.000313,30]
[426897858,1782994237000,-223.0,0.00031298,2]
[426897857,1782994237000,-1278.0,0.00031298,2]
[426897856,1782994237000,-1362.0,0.00031298,2]
[426897859,1782994237000,-522963.34468041,0.000313,30]
[426897855,1782994237000,-3566.0,0.00031298,2]
[426897854,1782994237000,-150.0,0.00031298,2]
[426897852,1782994237000,-150.0,0.00031298,2]
[426897861,1782994237000,-788.9667625,0.000313,30]
[426897853,1782994237000,-150.0,0.00031298,2]
[426897874,1782994237000,-161.62,0.00028637,30]
[426897875,1782994237000,-376.94477932,0.00028732,2]
[426897873,1782994237000,-1819.5,0.00027397,10]
[426897890,1782994237000,-151.0,0.0003133,2]
[426897886,1782994237000,-151.0,0.0003133,2]
[426897888,1782994237000,-482.74,0.0003133,2]
[426897884,1782994237000,-482.75,0.0003133,2]
[426897881,1782994237000,-574.05,0.0003133,2]
[426897882,1782994237000,-248.84,0.0003133,2]
[426897887,1782994237000,-151.0,0.0003133,2]
[426897880,1782994237000,-282.99,0.00031303,30]
[426897885,1782994237000,-151.0,0.0003133,2]
[426897879,1782994237000,-671794.82835056,0.000313,30]
[426897889,1782994237000,-482.75,0.0003133,2]
[426897878,1782994237000,-3035.92364252,0.00031234,2]
[426897877,1782994237000,-161.62,0.00029236,2]
[426897883,1782994237000,-151.0,0.0003133,2]
[426897876,1782994237000,-161.62,0.00028936,7]
[426897930,1782994238000,-2368.1892939,0.0003157,2]
[426897945,1782994238000,-57607.2214925,0.0003168,2]
[426897943,1782994238000,-1806.87214507,0.00031668,2]
[426897941,1782994238000,-248.84837786,0.0003163,2]
[426897944,1782994238000,-729.96,0.00031679,7]
[426897923,1782994238000,-38487.9667156,0.0003153,2]
[426897942,1782994238000,-151.0,0.00031646,2]
[426897921,1782994238000,-248.39382513,0.00031529,2]
[426897927,1782994238000,-1737.98,0.00031568,7]
[426897935,1782994238000,-304.0,0.00031586,5]
[426897940,1782994238000,-214.48449084,0.0003163,2]
[426897928,1782994238000,-440.79,0.00031569,3]
[426897951,1782994238000,-3442.44,0.00031758,2]
[426897936,1782994238000,-350.0,0.00031591,3]
[426897938,1782994238000,-999.73305166,0.00031616,30]
[426897949,1782994238000,-183.68,0.000317,30]
[426897946,1782994238000,-605.8,0.00031684,7]
[426897950,1782994238000,-999.73305166,0.00031726,30]
[426897952,1782994238000,-177.83671219,0.00031759,2]
[426897920,1782994238000,-1241.96912567,0.00031529,2]
[426897947,1782994238000,-350.02,0.00031693,21]
[426897953,1782994238000,-2000.0,0.00031799,7]
[426897955,1782994238000,-971.33729281,0.00031835,2]
[426897948,1782994238000,-191.69,0.000317,30]
[426897956,1782994238000,-1503.0,0.00031835,7]
[426897954,1782994238000,-1600.0,0.000318,11]
[426897932,1782994238000,-2000.0,0.00031585,5]
[426897925,1782994238000,-2000.0,0.00031556,3]
[426897907,1782994238000,-999.73305166,0.0003137,30]
[426897916,1782994238000,-2000.0,0.00031498,6]
[426897957,1782994238000,-2368.1892939,0.00031844,2]
[426897891,1782994238000,-151.0,0.0003133,2]
[426897901,1782994238000,-151.0,0.00031334,2]
[426897893,1782994238000,-248.85,0.0003133,2]
[426897892,1782994238000,-151.0,0.0003133,2]
[426897895,1782994238000,-151.0,0.0003133,2]
[426897897,1782994238000,-486.09,0.0003133,2]
[426897900,1782994238000,-151.0,0.00031334,2]
[426897896,1782994238000,-151.0,0.0003133,2]
[426897894,1782994238000,-482.74,0.0003133,2]
[426897899,1782994238000,-248.84,0.0003133,2]
[426897898,1782994238000,-482.74,0.0003133,2]
[426897903,1782994238000,-248.85,0.00031334,2]
[426897902,1782994238000,-248.85,0.00031334,2]
[426897904,1782994238000,-482.13,0.00031339,2]
[426897906,1782994238000,-439.68,0.00031339,2]
[426897905,1782994238000,-151.0,0.00031339,2]
[426897909,1782994238000,-3451.34,0.00031407,30]
[426897908,1782994238000,-179.2683589,0.000314,2]
[426897911,1782994238000,-200.0,0.00031459,2]
[426897910,1782994238000,-350.0,0.00031452,2]
[426897912,1782994238000,-1133.21537626,0.0003147,2]
[426897913,1782994238000,-186.29536885,0.00031479,30]
[426897915,1782994238000,-445.683038,0.00031482,7]
[426897919,1782994238000,-227.13251241,0.00031528,14]
[426897914,1782994238000,-999.73305166,0.00031479,30]
[426897917,1782994238000,-2013.0,0.000315,2]
[426897918,1782994238000,-188.80783087,0.00031507,15]
[426897959,1782994238000,-1080.3999431,0.00031892,2]
[426897979,1782994238000,-2000.0,0.00031998,120]
[426897958,1782994238000,-999.73305166,0.00031863,30]
[426897993,1782994238000,-729.96,0.00031999,7]
[426897991,1782994238000,-729.96,0.00031999,7]
[426897995,1782994238000,-729.96,0.00031999,7]
[426898006,1782994238000,-190.74957272,0.00032,14]
[426898005,1782994238000,-200.0,0.00032,2]
[426897997,1782994238000,-729.96,0.00031999,7]
[426898003,1782994238000,-1665485.08220802,0.00032,30]
[426897994,1782994238000,-729.96,0.00031999,7]
[426897999,1782994238000,-2000.0,0.00031999,30]
[426897998,1782994238000,-2000.0,0.00031999,2]
[426897996,1782994238000,-729.96,0.00031999,7]
[426898001,1782994238000,-2000.0,0.00031999,12]
[426897990,1782994238000,-1000.0,0.00031999,2]
[426898004,1782994238000,-412.0,0.00032,2]
[426898000,1782994238000,-2000.0,0.00031999,15]
[426898008,1782994238000,-816.67,0.00032,2]
[426898007,1782994238000,-816.67,0.00032,2]
[426898011,1782994238000,-257.79,0.00032,7]
[426898013,1782994238000,-3000.0,0.00032,25]
[426898016,1782994238000,-150.0,0.00032,10]
[426898009,1782994238000,-4870.04,0.00032,7]
[426898010,1782994238000,-8999.05,0.00032,2]
[426898012,1782994238000,-202.539999,0.00032,12]
[426898014,1782994238000,-861.7,0.00032,2]
[426898017,1782994238000,-425.11472,0.00032,26]
[426897969,1782994238000,-425.11473,0.0003195,25]
[426898002,1782994238000,-200.0,0.00032,2]
[426897992,1782994238000,-729.96,0.00031999,7]
[426898015,1782994238000,-160.0,0.00032,30]
[426897989,1782994238000,-1000.0,0.00031999,2]
[426897960,1782994238000,-2000.0,0.00031899,11]
[426897962,1782994238000,-2000.0,0.000319,2]
[426897961,1782994238000,-33361.7046,0.000319,2]
[426897963,1782994238000,-310.0,0.000319,2]
[426897964,1782994238000,-317.0,0.000319,2]
[426897968,1782994238000,-200.0,0.0003191,2]
[426897965,1782994238000,-2100.0,0.000319,11]
[426897966,1782994238000,-1000.0,0.000319,2]
[426897987,1782994238000,-1000.0,0.00031999,2]
[426897971,1782994238000,-500.0,0.00031968,2]
[426897973,1782994238000,-2000.0,0.00031979,4]
[426897974,1782994238000,-376.94477932,0.0003199,2]
[426897972,1782994238000,-151.13538036,0.00031968,2]
[426897967,1782994238000,-200.0,0.0003191,2]
[426897977,1782994238000,-151.0,0.00031997,7]
[426897985,1782994238000,-1000.0,0.00031999,2]
[426897970,1782994238000,-2000.0,0.00031956,14]
[426897988,1782994238000,-1000.0,0.00031999,2]
[426897986,1782994238000,-1000.0,0.00031999,2]
[426897983,1782994238000,-2000.0,0.00031998,32]
[426897982,1782994238000,-2000.0,0.00031998,8]
[426897984,1782994238000,-1000.0,0.00031999,2]
[426898018,1782994238000,-1800.0,0.00032,2]
[426897980,1782994238000,-2000.0,0.00031998,10]
[426897976,1782994238000,-151.0,0.00031997,7]
[426897975,1782994238000,-200.0,0.00031996,2]
[426897978,1782994238000,-151.0,0.00031997,7]
[426897981,1782994238000,-2000.0,0.00031998,25]
[426898058,1782994239000,-391.0,0.0003211,2]
[426898064,1782994239000,-391.0,0.00032143,2]
[426898055,1782994239000,-391.0,0.00032085,2]
[426898063,1782994239000,-412.0,0.00032143,2]
[426898047,1782994239000,-412.0,0.00032038,2]
[426898054,1782994239000,-391.0,0.00032058,2]
[426898048,1782994239000,-3451.34,0.00032041,30]
[426898052,1782994239000,-150.7194063,0.00032054,2]
[426898049,1782994239000,-412.0,0.00032049,2]
[426898053,1782994239000,-391.0,0.00032054,2]
[426898060,1782994239000,-279.0,0.00032121,2]
[426898073,1782994239000,-185.36,0.00032152,2]
[426898062,1782994239000,-412.0,0.00032142,2]
[426898057,1782994239000,-391.0,0.0003209,2]
[426898059,1782994239000,-2368.1892939,0.00032118,2]
[426898061,1782994239000,-412.0,0.00032133,2]
[426898066,1782994239000,-279.0,0.0003215,2]
[426898065,1782994239000,-644.85,0.00032147,2]
[426898072,1782994239000,-574.05,0.00032152,2]
[426898071,1782994239000,-644.46,0.00032152,2]
[426898074,1782994239000,-152.39,0.00032152,2]
[426898068,1782994239000,-574.09,0.00032152,2]
[426898067,1782994239000,-391.0,0.00032152,2]
[426898051,1782994239000,-391.0,0.00032051,2]
[426898056,1782994239000,-412.0,0.00032087,2]
[426898050,1782994239000,-391.0,0.00032051,2]
[426898033,1782994239000,-175.64,0.0003203,14]
[426898042,1782994239000,-259.00580192,0.00032038,2]
[426898070,1782994239000,-573.83,0.00032152,2]
[426898020,1782994239000,-391.0,0.00032007,2]
[426898019,1782994239000,-391.0,0.00032005,2]
[426898022,1782994239000,-412.0,0.00032012,2]
[426898021,1782994239000,-391.0,0.00032011,2]
[426898023,1782994239000,-391.0,0.00032019,2]
[426898026,1782994239000,-391.0,0.00032022,2]
[426898027,1782994239000,-14588.75702092,0.00032027,2]
[426898024,1782994239000,-391.0,0.0003202,2]
[426898025,1782994239000,-391.0,0.00032021,2]
[426898028,1782994239000,-391.0,0.00032028,2]
[426898030,1782994239000,-505.0,0.00032029,2]
[426898044,1782994239000,-189.18811414,0.00032038,2]
[426898029,1782994239000,-412.0,0.00032029,2]
[426898035,1782994239000,-150.15,0.0003203,14]
[426898031,1782994239000,-382.0,0.0003203,2]
[426898036,1782994239000,-175.63,0.0003203,14]
[426898037,1782994239000,-175.64,0.0003203,14]
[426898032,1782994239000,-412.0,0.0003203,2]
[426898034,1782994239000,-175.64,0.0003203,14]
[426898038,1782994239000,-150.15,0.0003203,14]
[426898039,1782994239000,-412.0,0.00032033,2]
[426898041,1782994239000,-224.00733175,0.00032038,2]
[426898043,1782994239000,-217.12966717,0.00032038,2]
[426898045,1782994239000,-344.85104112,0.00032038,2]
[426898046,1782994239000,-262.43778133,0.00032038,2]
[426898040,1782994239000,-223.23925928,0.00032038,2]
[426898069,1782994239000,-185.27,0.00032152,2]
[426898075,1782994239000,-185.36,0.00032152,2]
[426898086,1782994239000,-185.33,0.00032156,2]
[426898106,1782994239000,-151.0,0.00032156,2]
[426898109,1782994239000,-151.0,0.00032156,2]
[426898104,1782994239000,-482.74,0.00032156,2]
[426898111,1782994239000,-151.0,0.00032156,2]
[426898116,1782994239000,-151.0,0.00032156,2]
[426898117,1782994239000,-151.0,0.00032156,2]
[426898113,1782994239000,-482.78,0.00032156,2]
[426898115,1782994239000,-151.83,0.00032156,2]
[426898114,1782994239000,-151.0,0.00032156,2]
[426898119,1782994239000,-151.0,0.00032156,2]
[426898118,1782994239000,-151.0,0.00032156,2]
[426898121,1782994239000,-185.36,0.00032156,2]
[426898112,1782994239000,-151.0,0.00032156,2]
[426898120,1782994239000,-248.7,0.00032156,2]
[426898132,1782994239000,-151.0,0.00032156,2]
[426898123,1782994239000,-482.42,0.00032156,2]
[426898124,1782994239000,-151.71,0.00032156,2]
[426898122,1782994239000,-459.35,0.00032156,2]
[426898128,1782994239000,-482.74,0.00032156,2]
[426898127,1782994239000,-151.0,0.00032156,2]
[426898131,1782994239000,-151.0,0.00032156,2]
[426898129,1782994239000,-305.52,0.00032156,2]
[426898130,1782994239000,-187.59,0.00032156,2]
[426898076,1782994239000,-574.05,0.00032152,2]
[426898125,1782994239000,-151.0,0.00032156,2]
[426898107,1782994239000,-574.05,0.00032156,2]
[426898103,1782994239000,-482.75,0.00032156,2]
[426898126,1782994239000,-574.09,0.00032156,2]
[426898108,1782994239000,-151.0,0.00032156,2]
[426898105,1782994239000,-151.0,0.00032156,2]
[426898077,1782994239000,-391.0,0.00032155,2]
[426898079,1782994239000,-151.0,0.00032156,2]
[426898084,1782994239000,-482.74,0.00032156,2]
[426898082,1782994239000,-248.84,0.00032156,2]
[426898080,1782994239000,-201.31,0.00032156,2]
[426898078,1782994239000,-391.0,0.00032155,2]
[426898083,1782994239000,-482.74,0.00032156,2]
[426898081,1782994239000,-644.02,0.00032156,2]
[426898087,1782994239000,-151.0,0.00032156,2]
[426898090,1782994239000,-151.41,0.00032156,2]
[426898089,1782994239000,-482.78,0.00032156,2]
[426898085,1782994239000,-151.67,0.00032156,2]
[426898098,1782994239000,-248.84,0.00032156,2]
[426898110,1782994239000,-151.98,0.00032156,2]
[426898102,1782994239000,-248.48,0.00032156,2]
[426898100,1782994239000,-644.82,0.00032156,2]
[426898088,1782994239000,-151.0,0.00032156,2]
[426898097,1782994239000,-151.22,0.00032156,2]
[426898101,1782994239000,-185.2,0.00032156,2]
[426898099,1782994239000,-482.05,0.00032156,2]
[426898091,1782994239000,-572.58,0.00032156,2]
[426898094,1782994239000,-151.0,0.00032156,2]
[426898092,1782994239000,-151.0,0.00032156,2]
[426898095,1782994239000,-482.74,0.00032156,2]
[426898096,1782994239000,-644.82,0.00032156,2]
[426898172,1782994240000,-425.11472,0.00032232,28]
[426898169,1782994240000,-425.11472,0.00032232,28]
[426898168,1782994240000,-200.0,0.00032229,2]
[426898166,1782994240000,-391.0,0.00032219,2]
[426898160,1782994240000,-384.0,0.00032203,2]
[426898165,1782994240000,-391.0,0.00032205,2]
[426898164,1782994240000,-391.0,0.00032204,2]
[426898162,1782994240000,-391.0,0.00032203,2]
[426898161,1782994240000,-412.0,0.00032203,2]
[426898167,1782994240000,-200.0,0.00032229,2]
[426898170,1782994240000,-425.11473,0.00032232,28]
[426898176,1782994240000,-800.0,0.00032247,12]
[426898173,1782994240000,-8903.53,0.00032232,7]
[426898174,1782994240000,-201.0,0.00032245,2]
[426898177,1782994240000,-800.0,0.00032247,12]
[426898178,1782994240000,-800.0,0.00032247,12]
[426898175,1782994240000,-729.96,0.00032246,7]
[426898179,1782994240000,-800.0,0.00032247,12]
[426898188,1782994240000,-800.0,0.00032247,12]
[426898187,1782994240000,-800.0,0.00032247,12]
[426898189,1782994240000,-800.0,0.00032247,12]
[426898183,1782994240000,-800.0,0.00032247,12]
[426898159,1782994240000,-1267.81,0.000322,30]
[426898171,1782994240000,-425.11473,0.00032232,28]
[426898157,1782994240000,-412.0,0.00032199,2]
[426898145,1782994240000,-391.0,0.00032168,2]
[426898156,1782994240000,-391.0,0.00032197,2]
[426898180,1782994240000,-800.0,0.00032247,12]
[426898133,1782994240000,-151.0,0.00032156,2]
[426898134,1782994240000,-151.0,0.00032156,2]
[426898136,1782994240000,-248.55,0.00032156,2]
[426898135,1782994240000,-644.72,0.00032156,2]
[426898137,1782994240000,-152.86,0.00032156,2]
[426898140,1782994240000,-469.0,0.0003216,2]
[426898142,1782994240000,-314.08763408,0.0003216,2]
[426898138,1782994240000,-412.0,0.00032159,2]
[426898144,1782994240000,-150.0,0.00032162,2]
[426898139,1782994240000,-412.0,0.00032159,2]
[426898143,1782994240000,-443.83812366,0.00032162,2]
[426898141,1782994240000,-181.47062496,0.0003216,2]
[426898155,1782994240000,-391.0,0.00032193,2]
[426898154,1782994240000,-391.0,0.00032187,2]
[426898151,1782994240000,-391.0,0.00032183,2]
[426898148,1782994240000,-500.0,0.00032171,14]
[426898147,1782994240000,-412.0,0.00032171,2]
[426898153,1782994240000,-412.0,0.00032186,2]
[426898146,1782994240000,-700.0,0.0003217,2]
[426898152,1782994240000,-391.0,0.00032184,2]
[426898149,1782994240000,-1000.0,0.00032171,2]
[426898150,1782994240000,-391.0,0.00032175,2]
[426898158,1782994240000,-412.0,0.000322,2]
[426898182,1782994240000,-464.78995069,0.00032247,12]
[426898163,1782994240000,-412.0,0.00032204,2]
[426898184,1782994240000,-800.0,0.00032247,12]
[426898215,1782994240000,-12322.28811549,0.00032385,2]
[426898216,1782994240000,-2368.1892939,0.00032392,2]
[426898217,1782994240000,-729.96,0.00032399,7]
[426898220,1782994240000,-530.41063717,0.000324,2]
[426898218,1782994240000,-2183.1446633,0.00032399,2]
[426898223,1782994240000,-800.0,0.000325,5]
[426898221,1782994240000,-282.99,0.00032468,30]
[426898219,1782994240000,-37716.12364436,0.000324,2]
[426898222,1782994240000,-800.0,0.000325,5]
[426898225,1782994240000,-465.18,0.00032549,3]
[426898229,1782994240000,-150.0,0.00032562,2]
[426898224,1782994240000,-501.95764274,0.00032521,14]
[426898230,1782994240000,-150.73298281,0.00032566,120]
[426898228,1782994240000,-12322.28811549,0.00032555,2]
[426898226,1782994240000,-200.0,0.00032551,2]
[426898231,1782994240000,-2352.0,0.00032571,10]
[426898233,1782994240000,-4870.04,0.000326,7]
[426898232,1782994240000,-685.99,0.00032572,30]
[426898234,1782994240000,-257.79,0.000326,7]
[426898236,1782994240000,-350.0,0.00032611,3]
[426898237,1782994240000,-283.5317198,0.00032622,3]
[426898238,1782994240000,-587.62,0.00032635,7]
[426898181,1782994240000,-800.0,0.00032247,12]
[426898213,1782994240000,-251.0,0.0003234,2]
[426898214,1782994240000,-805.43652681,0.00032366,2]
[426898227,1782994240000,-200.0,0.00032551,2]
[426898210,1782994240000,-26654.54280534,0.0003233,120]
[426898212,1782994240000,-251.0,0.0003234,2]
[426898190,1782994240000,-800.0,0.00032247,12]
[426898186,1782994240000,-800.0,0.00032247,12]
[426898185,1782994240000,-800.0,0.00032247,12]
[426898191,1782994240000,-500.0,0.00032259,14]
[426898195,1782994240000,-700.0,0.0003227,2]
[426898192,1782994240000,-160.26529082,0.00032259,2]
[426898194,1782994240000,-171967.63083698,0.0003226,2]
[426898198,1782994240000,-2510.55783271,0.00032282,2]
[426898196,1782994240000,-300.0,0.0003227,2]
[426898201,1782994240000,-476.29206173,0.000323,2]
[426898197,1782994240000,-1789.13359371,0.00032271,2]
[426898193,1782994240000,-1000.0,0.00032259,2]
[426898209,1782994240000,-200.0,0.0003232,2]
[426898199,1782994240000,-507.49219555,0.00032299,14]
[426898203,1782994240000,-4870.04,0.000323,7]
[426898204,1782994240000,-257.79,0.000323,7]
[426898202,1782994240000,-476.29206173,0.000323,2]
[426898208,1782994240000,-200.0,0.00032316,2]
[426898205,1782994240000,-2000.0,0.000323,7]
[426898235,1782994240000,-508.0,0.00032606,8]
[426898211,1782994240000,-251.0,0.0003234,2]
[426898207,1782994240000,-166.03,0.00032308,2]
[426898200,1782994240000,-914.69790975,0.000323,2]
[426898206,1782994240000,-872.9260739,0.000323,2]
[426898281,1782994241000,-3392.476,0.000329,10]
[426898280,1782994241000,-3392.476,0.000329,10]
[426898266,1782994241000,-600.0,0.00032877,120]
[426898283,1782994241000,-272.5,0.000329,120]
[426898278,1782994241000,-1133.21537626,0.00032899,2]
[426898289,1782994241000,-150.7194063,0.000329,2]
[426898275,1782994241000,-573.3506609,0.00032877,10]
[426898276,1782994241000,-200.0,0.00032877,2]
[426898273,1782994241000,-811.88,0.00032877,120]
[426898277,1782994241000,-1806.87214507,0.00032899,2]
[426898274,1782994241000,-200.0,0.00032877,2]
[426898284,1782994241000,-28997.0,0.000329,7]
[426898279,1782994241000,-740.022,0.000329,10]
[426898286,1782994241000,-257.79,0.000329,7]
[426898295,1782994241000,-700.0,0.0003297,2]
[426898285,1782994241000,-4870.04,0.000329,7]
[426898287,1782994241000,-266.5965766,0.000329,2]
[426898288,1782994241000,-400.0,0.000329,12]
[426898292,1782994241000,-200.0,0.00032966,2]
[426898290,1782994241000,-1000.0,0.00032953,2]
[426898300,1782994241000,-574.09,0.00032978,2]
[426898302,1782994241000,-185.01,0.00032978,2]
[426898299,1782994241000,-573.89,0.00032978,2]
[426898301,1782994241000,-185.36,0.00032978,2]
[426898291,1782994241000,-334.3679579,0.0003296,2]
[426898293,1782994241000,-700.0,0.0003297,2]
[426898297,1782994241000,-200.0,0.0003297,2]
[426898272,1782994241000,-2000.0,0.00032877,50]
[426898282,1782994241000,-3392.47,0.000329,20]
[426898271,1782994241000,-600.0,0.00032877,120]